bitfinex/quotes_BTCUSD_20250505
["timestamp","ask_amount","ask_price","bid_price","bid_amount"]
[1746467304797,0.0165624,94693.0,94692.0,0.21221108]
[1746467305727,0.0165624,94693.0,94692.0,0.21321108]
[1746467306515,0.22176466,94695.0,94692.0,0.21321108]
[1746467307186,0.22176466,94695.0,94692.0,0.002]
[1746467307683,0.21120235,94696.0,94693.0,0.21120797]
[1746467308248,0.21120235,94696.0,94694.0,0.21120632]
[1746467308448,0.21120235,94696.0,94693.0,0.22176841]
[1746467308449,0.21120485,94695.0,94693.0,0.22176841]
[1746467308871,0.21120486,94695.0,94693.0,0.22176841]
[1746467309253,0.22176507,94695.0,94692.0,0.01156055]
[1746467309447,0.22176507,94695.0,94693.0,0.001]
[1746467309750,0.21120662,94694.0,94693.0,0.001]
[1746467309952,0.01656245,94695.0,94694.0,0.21120662]
[1746467310348,0.01656245,94695.0,94694.0,0.22690662]
[1746467310550,0.01656245,94695.0,94694.0,0.24220662]
[1746467311847,0.01656245,94695.0,94694.0,0.27826686]
[1746467312165,0.01656245,94695.0,94694.0,0.27926686]
[1746467312702,0.01656245,94695.0,94694.0,0.28226686]
[1746467313573,0.01656245,94695.0,94694.0,0.28126686]
[1746467313869,0.01656245,94695.0,94694.0,0.28426686]
[1746467315650,0.6973,94718.0,94717.0,0.21115533]
[1746467315764,0.6983,94719.0,94718.0,0.2111531]
[1746467316595,0.6983,94719.0,94718.0,0.21090616]
[1746467316842,0.70275311,94719.0,94718.0,0.21090616]
[1746467318022,0.71131065,94719.0,94705.0,0.2111799]
[1746467318216,0.71131065,94719.0,94711.0,0.01055843]
[1746467318339,0.70931065,94719.0,94716.0,0.21115541]
[1746467318539,0.70931065,94719.0,94718.0,0.001]
[1746467318767,0.72587062,94719.0,94718.0,0.001]
[1746467319187,0.72587062,94719.0,94716.0,0.22171328]
[1746467319387,0.72587062,94719.0,94717.0,0.21115533]
[1746467320141,0.93702153,94719.0,94716.0,0.22171506]
[1746467320267,0.93702153,94719.0,94718.0,0.001]
[1746467320461,0.71531308,94719.0,94718.0,0.001]
[1746467320872,0.92646395,94719.0,94718.0,0.001]
[1746467321480,0.21115329,94718.0,94716.0,0.21115749]
[1746467321781,0.22171094,94718.0,94714.0,0.22171968]
[1746467322360,0.71531308,94719.0,94717.0,0.21215343]
[1746467322572,0.71531308,94719.0,94718.0,0.2111531]
[1746467322914,0.71531308,94719.0,94717.0,0.21115492]
[1746467323109,0.71531308,94719.0,94716.0,0.22171535]
[1746467323310,0.71531308,94719.0,94718.0,0.2111531]
[1746467323510,0.71531308,94719.0,94718.0,0.2427531]
[1746467324425,0.71531308,94719.0,94718.0,0.27892502]
[1746467324860,0.71531308,94719.0,94718.0,0.27992502]
[1746467325397,0.71531308,94719.0,94718.0,0.2437531]
[1746467326004,0.69875311,94719.0,94718.0,0.2437531]
[1746467327848,0.00145311,94719.0,94718.0,0.2437531]
[1746467329116,0.00145311,94719.0,94718.0,0.2273531]
[1746467330329,0.00145311,94719.0,94718.0,0.0162]
[1746467330548,0.00145311,94719.0,94718.0,0.001]
[1746467331099,0.23164325,94719.0,94718.0,0.001]
[1746467331298,0.22900398,94719.0,94718.0,0.001]
[1746467337307,0.24450398,94719.0,94718.0,0.001]
[1746467337622,0.22900398,94719.0,94718.0,0.001]
[1746467337838,0.72900398,94719.0,94718.0,0.001]
[1746467338242,0.71260398,94719.0,94718.0,0.001]
[1746467338782,0.50145311,94719.0,94718.0,0.2121531]
[1746467339386,0.50145311,94719.0,94718.0,0.2449531]
[1746467339590,0.50145311,94719.0,94718.0,0.2287531]
[1746467339754,0.50145311,94719.0,94718.0,0.2121531]
[1746467340183,0.00145311,94719.0,94718.0,0.2121531]
[1746467342588,0.01801099,94719.0,94718.0,0.2121531]
[1746467346698,0.00145311,94719.0,94718.0,0.2121531]
[1746467347893,0.00145311,94719.0,94718.0,0.2284531]
[1746467348114,0.00145311,94719.0,94718.0,0.2434531]
[1746467349725,0.01801067,94719.0,94718.0,0.2434531]
[1746467352647,0.01801067,94719.0,94718.0,0.2121531]
[1746467352843,0.01801067,94719.0,94718.0,0.001]
[1746467353052,0.22916154,94719.0,94718.0,0.001]
[1746467353636,0.24536154,94719.0,94718.0,0.001]
[1746467354389,0.26146154,94719.0,94718.0,0.001]
[1746467354602,0.60146154,94719.0,94718.0,0.001]
[1746467355253,0.21118064,94706.0,94704.0,0.04969428]
[1746467355512,0.01055821,94713.0,94710.0,0.21117069]
[1746467355736,0.22171878,94715.0,94711.0,0.21116842]
[1746467355969,0.01655949,94713.0,94711.0,0.21116842]
[1746467356432,0.05243145,94713.0,94711.0,0.21116842]
[1746467356661,0.03587196,94713.0,94710.0,0.22172923]
[1746467356871,0.21116508,94713.0,94710.0,0.22172923]
[1746467358140,0.21116508,94713.0,94711.0,0.002]
[1746467358359,0.21116508,94713.0,94711.0,0.001]
[1746467358580,0.21116508,94713.0,94711.0,0.21216844]
[1746467358977,0.24826406,94713.0,94711.0,0.21216844]
[1746467359406,0.24826406,94713.0,94711.0,0.21116844]
[1746467359614,0.26482378,94713.0,94711.0,0.21116844]
[1746467360258,0.0536587,94713.0,94711.0,0.001]
[1746467360505,0.0536587,94713.0,94711.0,0.21216658]
[1746467360868,0.0536587,94713.0,94711.0,0.002]
[1746467361091,0.26482356,94713.0,94711.0,0.21316856]
[1746467361286,0.26482356,94713.0,94711.0,0.002]
[1746467361523,0.21116648,94712.0,94711.0,0.002]
[1746467362086,0.0536587,94713.0,94711.0,0.21316871]
[1746467362518,0.0536587,94713.0,94711.0,0.21216871]
[1746467362906,0.0536587,94713.0,94711.0,0.21416871]
[1746467363347,0.0536587,94713.0,94711.0,0.21216871]
[1746467363558,0.26482307,94713.0,94711.0,0.21216833]
[1746467363771,0.26482307,94713.0,94711.0,0.002]
[1746467363961,0.26482307,94713.0,94711.0,0.001]
[1746467364434,0.26482307,94713.0,94711.0,0.21316842]
[1746467365479,0.0536587,94713.0,94711.0,0.002]
[1746467365693,0.0536587,94713.0,94711.0,0.21316831]
[1746467366796,0.03709898,94713.0,94711.0,0.21316831]
[1746467366990,0.03709898,94713.0,94711.0,0.002]
[1746467367195,0.21116456,94713.0,94711.0,0.002]
[1746467368396,0.22172156,94714.0,94711.0,0.21316827]
[1746467369210,0.25911968,94714.0,94711.0,0.21316827]
[1746467369522,0.04795622,94714.0,94711.0,0.21116827]
[1746467369706,0.04795622,94714.0,94711.0,0.2227267]
[1746467369707,0.06451573,94714.0,94711.0,0.2227267]
[1746467370043,0.06451573,94714.0,94711.0,0.2237267]
[1746467370375,0.05395763,94714.0,94712.0,0.21116524]
[1746467370604,0.05395763,94714.0,94713.0,0.21116425]
[1746467370815,0.01655951,94714.0,94713.0,0.21116425]
[1746467372223,0.01655951,94714.0,94712.0,0.21216524]
[1746467372369,0.01655951,94714.0,94713.0,0.21116425]
[1746467373183,0.01655951,94714.0,94713.0,0.21216425]
[1746467373676,0.01655951,94714.0,94713.0,0.21316425]
[1746467374019,0.01655951,94714.0,94713.0,0.002]
[1746467374441,0.01655951,94714.0,94713.0,0.21316425]
[1746467375266,0.01655951,94714.0,94713.0,0.002]
[1746467375498,0.01655951,94714.0,94713.0,0.21316425]
[1746467376020,0.01655951,94714.0,94713.0,0.002]
[1746467376233,0.01919912,94714.0,94713.0,0.002]
[1746467376452,0.01655951,94714.0,94713.0,0.002]
[1746467376665,0.03658004,94715.0,94714.0,0.21116202]
[1746467377104,0.22171437,94717.0,94714.0,0.21116202]
[1746467377320,0.03186211,94715.0,94714.0,0.21116202]
[1746467377522,0.22171437,94717.0,94714.0,0.21116202]
[1746467377739,0.22171437,94717.0,94714.0,0.21216202]
[1746467377939,0.5,94715.0,94714.0,0.21216202]
[1746467378154,0.5,94715.0,94714.0,0.21116202]
[1746467378782,0.5,94715.0,94714.0,0.21216202]
[1746467379908,0.5,94715.0,94714.0,0.21316202]
[1746467381031,0.54784804,94715.0,94714.0,0.21316202]
[1746467383814,0.75900783,94715.0,94714.0,0.002]
[1746467384032,0.54784804,94715.0,94714.0,0.002]
[1746467385564,0.54784804,94715.0,94714.0,0.21316202]
[1746467386732,0.53128867,94715.0,94714.0,0.21316202]
[1746467389708,0.54784792,94715.0,94714.0,0.21316202]
[1746467392186,0.54784792,94715.0,94714.0,0.002]
[1746467392404,0.54784792,94715.0,94714.0,0.21316202]
[1746467392825,0.77490771,94715.0,94714.0,0.002]
[1746467393023,1.82790771,94715.0,94714.0,0.002]
[1746467393663,1.82790771,94715.0,94714.0,0.001]
[1746467393870,0.21119101,94701.0,94700.0,0.04969428]
[1746467394648,0.22775168,94701.0,94700.0,0.04969428]
[1746467396435,0.72775168,94701.0,94700.0,0.04969428]
[1746467396597,0.71119101,94701.0,94700.0,0.04969428]
[1746467397378,0.72175056,94701.0,94698.0,0.21119686]
[1746467398131,0.01055977,94699.0,94689.0,0.04969428]
[1746467398361,0.21121554,94690.0,94689.0,0.04969428]
[1746467398560,0.22177166,94692.0,94689.0,0.04969428]
[1746467399516,0.21121554,94690.0,94689.0,0.04969428]
[1746467399640,0.03887125,94690.0,94688.0,0.26091361]
[1746467399867,0.23838013,94692.0,94689.0,0.21121743]
[1746467400612,0.01056066,94691.0,94688.0,0.04969428]
[1746467400755,0.21121685,94690.0,94689.0,0.001]
[1746467400960,0.23716651,94690.0,94689.0,0.001]
[1746467401350,0.51056066,94691.0,94688.0,0.06025528]
[1746467401568,0.5,94691.0,94690.0,0.21121554]
[1746467401769,0.5,94691.0,94689.0,0.001]
[1746467402207,0.71121394,94691.0,94689.0,0.2122173]
[1746467402630,0.5,94691.0,94689.0,0.2122173]
[1746467403241,0.5,94691.0,94690.0,0.21121554]
[1746467403489,0.5,94691.0,94690.0,0.24141554]
[1746467404773,0.5,94691.0,94690.0,0.24441554]
[1746467404950,0.5,94691.0,94690.0,0.24541554]
[1746467405136,0.71390742,94692.0,94691.0,0.21121331]
[1746467405333,0.71390742,94692.0,94691.0,0.24331331]
[1746467406592,0.69734529,94692.0,94691.0,0.24331331]
[1746467407186,0.69734529,94692.0,94691.0,0.29084094]
[1746467407389,0.69734529,94692.0,94691.0,0.30084094]
[1746467407805,0.66425946,94692.0,94691.0,0.30084094]
[1746467408172,0.66425946,94692.0,94691.0,0.33044116]
[1746467408368,0.66425946,94692.0,94691.0,0.30876675]
[1746467408781,0.01155754,94719.0,94699.0,0.2111943]
[1746467408782,0.01055932,94703.0,94699.0,0.2111943]
[1746467409000,0.01055932,94703.0,94697.0,0.01055999]
[1746467409001,0.01055966,94700.0,94695.0,0.01056021]
[1746467409208,0.01056033,94694.0,94691.0,0.05752763]
[1746467409550,0.21120903,94693.0,94691.0,0.05752763]
[1746467409751,0.21120903,94693.0,94691.0,0.05252763]
[1746467409972,0.22176525,94695.0,94692.0,0.21121108]
[1746467410175,0.01055977,94699.0,94692.0,0.21121095]
[1746467410373,0.22175967,94698.0,94696.0,0.21120152]
[1746467410611,0.22175967,94698.0,94695.0,0.22176362]
[1746467410732,0.21120747,94694.0,94691.0,0.27030149]
[1746467411139,0.22176267,94696.0,94693.0,0.22176874]
[1746467411349,0.22176278,94696.0,94693.0,0.01056044]
[1746467411559,0.01056033,94694.0,94691.0,0.001]
[1746467412175,0.22176785,94694.0,94691.0,0.001]
[1746467412502,0.22176785,94694.0,94691.0,0.21221308]
[1746467412705,0.22176785,94694.0,94691.0,0.21121308]
[1746467412911,0.22176785,94694.0,94691.0,0.20621308]
[1746467413141,0.01055999,94697.0,94693.0,0.21120885]
[1746467413618,0.01056021,94695.0,94692.0,0.22177107]
[1746467414077,0.01056021,94695.0,94691.0,0.22376966]
[1746467414303,0.01056021,94695.0,94691.0,0.22176966]
[1746467414758,0.22176704,94694.0,94690.0,0.22177534]
[1746467415205,0.21121053,94693.0,94690.0,0.22177534]
[1746467415408,0.22177097,94693.0,94690.0,0.22177534]
[1746467416063,0.2217671,94694.0,94691.0,0.01156066]
[1746467416298,0.01056033,94694.0,94692.0,0.21121108]
[1746467416518,0.22175309,94700.0,94697.0,0.21119976]
[1746467416733,0.01055999,94697.0,94691.0,0.22177295]
[1746467416963,4.538e-05,94703.0,94700.0,0.21119324]
[1746467417182,4.538e-05,94703.0,94698.0,0.22175603]
[1746467417408,4.538e-05,94703.0,94700.0,0.21119324]
[1746467417900,4.538e-05,94703.0,94700.0,0.21019324]
[1746467418305,0.66525946,94701.0,94700.0,0.21019324]
[1746467419124,0.66625946,94701.0,94700.0,0.21019324]
[1746467419551,0.66425946,94701.0,94700.0,0.21019324]
[1746467419753,0.68182027,94701.0,94700.0,0.21119324]
[1746467419962,0.68282027,94701.0,94700.0,0.21119324]
[1746467420135,0.68082027,94701.0,94700.0,0.21119324]
[1746467420570,0.68082027,94701.0,94700.0,0.21319324]
[1746467422293,0.89201128,94701.0,94700.0,0.002]
[1746467423345,1.39201128,94701.0,94700.0,0.002]
[1746467425648,1.40741128,94701.0,94700.0,0.002]
[1746467426088,1.39201128,94701.0,94700.0,0.002]
[1746467426739,1.37545047,94701.0,94700.0,0.002]
[1746467428325,1.39105047,94701.0,94700.0,0.002]
[1746467428759,1.37545047,94701.0,94700.0,0.002]
[1746467429792,1.39201169,94701.0,94700.0,0.002]
[1746467431502,1.18082068,94701.0,94700.0,0.002]
[1746467431916,1.18082068,94701.0,94700.0,0.21319324]
[1746467433717,1.18082068,94701.0,94700.0,0.22326457]
[1746467433943,1.18082068,94701.0,94700.0,0.23926457]
[1746467434577,0.68082068,94701.0,94700.0,0.23926457]
[1746467435442,0.68082068,94701.0,94700.0,0.25486457]
[1746467436808,0.66425946,94701.0,94700.0,0.25486457]
[1746467438055,0.66325946,94701.0,94700.0,0.25486457]
[1746467438688,4.538e-05,94703.0,94702.0,0.21118878]
[1746467438858,4.538e-05,94703.0,94702.0,0.24228878]
[1746467439080,4.538e-05,94703.0,94702.0,0.25225914]
[1746467439839,4.538e-05,94703.0,94702.0,0.25325914]
[1746467440054,4.538e-05,94703.0,94702.0,0.25425914]
[1746467440976,0.01660491,94703.0,94702.0,0.25425914]
[1746467441613,0.01660491,94703.0,94702.0,0.23845914]
[1746467442226,0.01660491,94703.0,94702.0,0.25415914]
[1746467442425,0.01660491,94703.0,94702.0,0.34610142]
[1746467443769,0.01660491,94703.0,94702.0,0.25415914]
[1746467445609,0.01660491,94703.0,94702.0,0.28132908]
[1746467445900,0.66425946,94719.0,94718.0,0.2111531]
[1746467446233,0.66471336,94719.0,94718.0,0.22106039]
[1746467446380,0.68127175,94719.0,94718.0,0.22106039]
[1746467446582,0.66471336,94719.0,94718.0,0.22106039]
[1746467446762,0.66471336,94719.0,94718.0,0.21406039]
[1746467447121,0.66771336,94719.0,94718.0,0.21406039]
[1746467447663,0.88186423,94719.0,94718.0,0.00990729]
[1746467448105,0.88186423,94719.0,94716.0,0.21115708]
[1746467448310,0.87886423,94719.0,94718.0,0.0098609]
[1746467448506,0.87586423,94719.0,94717.0,0.00986222]
[1746467448745,0.66471336,94719.0,94718.0,0.0098609]
[1746467449310,0.66471336,94719.0,94718.0,0.221014]
[1746467449551,0.66471336,94719.0,94718.0,0.0098609]
[1746467449788,0.68127169,94719.0,94718.0,0.0098609]
[1746467450537,0.68127169,94719.0,94718.0,0.221014]
[1746467455942,0.68127169,94719.0,94718.0,0.0098609]
[1746467456140,0.68127169,94719.0,94718.0,0.221014]
[1746467456625,0.68127169,94719.0,94718.0,0.0098609]
[1746467457069,0.68127169,94719.0,94718.0,0.2111531]
[1746467457271,0.68127169,94719.0,94718.0,0.221014]
[1746467458173,0.68127169,94719.0,94718.0,0.0098609]
[1746467458581,0.68127169,94719.0,94718.0,0.2111531]
[1746467458865,0.68127169,94719.0,94718.0,0.221014]
[1746467460802,0.68127169,94719.0,94718.0,0.214014]
[1746467460943,0.68127169,94719.0,94718.0,0.0098609]
[1746467460944,0.89242256,94719.0,94718.0,0.0098609]
[1746467461144,0.68127169,94719.0,94717.0,0.21115495]
[1746467461344,0.68127169,94719.0,94718.0,0.00988132]
[1746467461570,0.66471336,94719.0,94718.0,0.00988132]
[1746467461976,0.66471336,94719.0,94718.0,0.22103442]
[1746467462524,0.66471336,94719.0,94718.0,0.00988132]
[1746467462900,0.22172937,94711.0,94702.0,0.0153]
[1746467463164,0.01055854,94710.0,94705.0,0.0105591]
[1746467463363,0.21117432,94709.0,94705.0,0.0105591]
[1746467463526,0.21117862,94707.0,94705.0,0.0105591]
[1746467463727,0.21117862,94707.0,94705.0,0.22174007]
[1746467463948,0.22173427,94708.0,94705.0,0.22174007]
[1746467464107,0.22173297,94709.0,94706.0,0.21117961]
[1746467464313,0.22171376,94717.0,94710.0,0.21117048]
[1746467464541,0.22171376,94717.0,94706.0,0.23743883]
[1746467464542,0.01055821,94713.0,94706.0,0.23743883]
[1746467464737,0.21117296,94710.0,94707.0,0.0157]
[1746467464996,0.01655914,94714.0,94712.0,0.0164]
[1746467465196,0.01655914,94714.0,94713.0,0.0328]
[1746467465409,0.01655914,94714.0,94713.0,0.24396425]
[1746467466024,0.0014539,94719.0,94718.0,0.2111531]
[1746467466328,0.0014539,94719.0,94718.0,0.2431531]
[1746467467489,0.0014539,94719.0,94718.0,0.25406196]
[1746467468564,0.0014539,94719.0,94718.0,0.25606196]
[1746467474446,0.0014539,94719.0,94718.0,0.35089186]
[1746467474658,0.0014539,94719.0,94718.0,0.70543271]
[1746467474862,0.0014539,94719.0,94718.0,0.71334207]
[1746467475070,0.003,94729.0,94726.0,0.38644085]
[1746467475284,0.001,94744.0,94743.0,0.24299738]
[1746467475502,0.66325946,94767.0,94748.0,0.21108624]
[1746467475708,0.66325946,94767.0,94766.0,0.21104615]
[1746467475932,0.004,94769.0,94768.0,0.2110417]
[1746467476138,0.004,94769.0,94768.0,0.2274417]
[1746467476349,0.00412462,94769.0,94768.0,0.23699481]
[1746467476754,0.00412462,94769.0,94768.0,0.25209481]
[1746467477274,0.00612462,94769.0,94768.0,0.25209481]
[1746467477679,0.00412462,94769.0,94768.0,0.25209481]
[1746467478080,0.00512462,94769.0,94768.0,0.25209481]
[1746467478296,0.00712462,94769.0,94768.0,0.25209481]
[1746467478501,0.00712462,94769.0,94768.0,0.23699481]
[1746467479389,0.02367392,94769.0,94768.0,0.23699481]
[1746467479912,0.00712462,94769.0,94768.0,0.23699481]
[1746467482997,0.02367398,94769.0,94768.0,0.23699481]
[1746467483967,0.02367398,94769.0,94768.0,0.00955311]
[1746467484173,0.0105523,94766.0,94757.0,0.0159]
[1746467484376,0.01055275,94762.0,94758.0,0.00956632]
[1746467484576,0.01055319,94758.0,94755.0,0.01055353]
[1746467484824,0.21106174,94759.0,94756.0,0.22027287]
[1746467485022,0.22161482,94759.0,94756.0,0.00920549]
[1746467485226,0.02710405,94759.0,94757.0,0.21106599]
[1746467485398,0.01655097,94759.0,94757.0,0.21106599]
[1746467485586,0.01655097,94759.0,94758.0,0.00920285]
[1746467486771,0.0105523,94766.0,94761.0,0.22160807]
[1746467486772,0.22159993,94766.0,94761.0,0.22160807]
[1746467487157,0.22159993,94766.0,94762.0,0.00927332]
[1746467487698,0.22159993,94766.0,94762.0,0.01982607]
[1746467488239,0.22159993,94766.0,94762.0,0.23088021]
[1746467488644,0.2110506,94764.0,94762.0,0.00927332]
[1746467488811,0.21105283,94763.0,94762.0,0.00927332]
[1746467489005,0.21106018,94760.0,94757.0,0.01055331]
[1746467489219,0.01055308,94759.0,94756.0,0.2216203]
[1746467489637,0.01055264,94763.0,94760.0,0.22161183]
[1746467489866,0.01055253,94764.0,94761.0,0.22160797]
[1746467490075,0.01055253,94764.0,94762.0,0.21105478]
[1746467490288,0.01655083,94763.0,94762.0,0.21105478]
[1746467490685,0.01655083,94763.0,94762.0,0.04736073]
[1746467490988,0.01655083,94763.0,94761.0,0.2216101]
[1746467491614,0.21105842,94761.0,94757.0,0.22161865]
[1746467491809,0.01055275,94762.0,94757.0,0.22161865]
[1746467491810,0.01655083,94763.0,94759.0,0.01055308]
[1746467492016,0.01055275,94762.0,94759.0,0.22161289]
[1746467492217,0.2276041,94763.0,94760.0,0.22161236]
[1746467492420,0.01655083,94763.0,94761.0,0.21105726]
[1746467493080,0.23815822,94763.0,94761.0,0.21105728]
[1746467493288,0.23815822,94763.0,94760.0,0.22161186]
[1746467493537,0.02710347,94763.0,94760.0,0.2216121]
[1746467493741,0.21106477,94758.0,94756.0,0.01055342]
[1746467494869,0.01055386,94752.0,94745.0,0.01055464]
[1746467495077,0.21110502,94740.0,94735.0,0.016]
[1746467495292,0.22166163,94739.0,94736.0,0.01055564]
[1746467495496,0.21110873,94738.0,94735.0,0.21111521]
[1746467495711,0.21110873,94738.0,94735.0,0.22167097]
[1746467495921,0.01655315,94739.0,94736.0,0.22166701]
[1746467496129,0.01655315,94739.0,94736.0,0.01055564]
[1746467496336,0.21109353,94745.0,94741.0,0.21110153]
[1746467496545,0.21109353,94745.0,94742.0,0.21109919]
[1746467496546,0.00012458,94743.0,94742.0,0.21109919]
[1746467496752,0.00012458,94743.0,94739.0,0.21110518]
[1746467496933,0.00012458,94743.0,94740.0,0.22165705]
[1746467497083,0.00012458,94743.0,94738.0,0.22166395]
[1746467497084,0.01055509,94741.0,94737.0,0.22166628]
[1746467497309,0.00012458,94743.0,94740.0,0.22165927]
[1746467498111,0.22165678,94742.0,94738.0,0.21110802]
[1746467498342,0.01055509,94741.0,94738.0,0.21110798]
[1746467498868,0.22165774,94741.0,94738.0,0.21110798]
[1746467499037,0.22165774,94741.0,94740.0,0.002]
[1746467499440,0.01067944,94743.0,94740.0,0.22165722]
[1746467499643,0.21110258,94741.0,94738.0,0.01055542]
[1746467499844,0.21110258,94741.0,94738.0,0.01455542]
[1746467500050,0.21110258,94741.0,94738.0,0.22566376]
[1746467500250,0.21110258,94741.0,94738.0,0.22366376]
[1746467500631,0.22765632,94741.0,94738.0,0.22166376]
[1746467500832,0.22765632,94741.0,94740.0,0.002]
[1746467502034,0.22765632,94741.0,94740.0,0.004]
[1746467502561,0.22765632,94741.0,94740.0,0.002]
[1746467502832,0.01655374,94741.0,94740.0,0.002]
[1746467503059,0.22765558,94741.0,94740.0,0.002]
[1746467503569,0.01655374,94741.0,94740.0,0.004]
[1746467505237,0.22765558,94741.0,94740.0,0.004]
[1746467506388,0.01655374,94741.0,94740.0,0.004]
[1746467506508,0.22165459,94742.0,94740.0,0.004]
[1746467507346,0.22165459,94742.0,94740.0,0.002]
[1746467508787,0.22165459,94742.0,94739.0,0.21110583]
[1746467508967,0.22165459,94742.0,94740.0,0.002]
[1746467509168,0.22165459,94742.0,94740.0,0.004]
[1746467509715,0.22165459,94742.0,94740.0,0.002]
[1746467510801,0.22165459,94742.0,94740.0,0.004]
[1746467511859,0.2110999,94742.0,94740.0,0.004]
[1746467512066,0.00012458,94743.0,94742.0,0.21109961]
[1746467512295,0.00012458,94743.0,94742.0,0.24329961]
[1746467512496,0.00012458,94743.0,94742.0,0.25127957]
[1746467513277,0.00012458,94743.0,94742.0,0.25327957]
[1746467514183,0.00012458,94743.0,94742.0,0.25527957]
[1746467515786,0.21122196,94743.0,94742.0,0.04417996]
[1746467516081,0.21122196,94743.0,94742.0,0.004]
[1746467516847,0.21122196,94743.0,94742.0,0.01065805]
[1746467517194,0.21122196,94743.0,94742.0,0.004]
[1746467517526,0.21122196,94743.0,94742.0,0.01067748]
[1746467517717,0.21122196,94743.0,94742.0,0.004]
[1746467517956,0.21122196,94743.0,94742.0,0.01067748]
[1746467518158,0.21122196,94743.0,94742.0,0.004]
[1746467518365,0.21122196,94743.0,94742.0,0.01067748]
[1746467518571,0.21122196,94743.0,94742.0,0.004]
[1746467518778,0.21122196,94743.0,94742.0,0.01067748]
[1746467518949,0.21122196,94743.0,94742.0,0.004]
[1746467519143,0.21122196,94743.0,94742.0,0.01069958]
[1746467519350,0.21122196,94743.0,94742.0,0.004]
[1746467519551,0.21122196,94743.0,94742.0,0.01069958]
[1746467519753,0.21122196,94743.0,94742.0,0.004]
[1746467519754,0.22777561,94743.0,94742.0,0.004]
[1746467520190,0.22777561,94743.0,94742.0,0.01069861]
[1746467523794,0.22777561,94743.0,94742.0,0.004]
[1746467524034,0.22777561,94743.0,94742.0,0.01069861]
[1746467525013,0.01667823,94743.0,94742.0,0.01069861]
[1746467526671,0.00012458,94743.0,94742.0,0.01069861]
[1746467527202,0.00012458,94743.0,94742.0,0.31966572]
[1746467528049,0.00012458,94743.0,94742.0,0.25209822]
[1746467529351,0.00012458,94743.0,94742.0,0.23689822]
[1746467529718,0.01667775,94743.0,94742.0,0.23689822]
[1746467530841,0.01667775,94743.0,94742.0,0.01069861]
[1746467531040,0.22777513,94743.0,94742.0,0.01069861]
[1746467535040,0.26664638,94743.0,94742.0,0.01069861]
[1746467535248,0.25867513,94743.0,94742.0,0.01069861]
[1746467535454,1.26193459,94743.0,94742.0,0.004]
[1746467535659,1.29167645,94743.0,94742.0,0.004]
[1746467535873,0.58202635,94730.0,94709.0,0.06443831]
[1746467536078,0.58203527,94726.0,94710.0,0.06443831]
[1746467536281,1.24529473,94726.0,94710.0,0.06443831]
[1746467536506,1.27504166,94726.0,94710.0,0.06443831]
[1746467536716,1.24529473,94726.0,94710.0,0.06443831]
[1746467537106,1.27499854,94726.0,94710.0,0.06443831]
[1746467537347,1.24929473,94726.0,94710.0,0.06443831]
[1746467537872,0.55116871,94711.0,94710.0,0.05843831]
[1746467538134,1.24532817,94711.0,94710.0,0.05843831]
[1746467538689,1.26188803,94711.0,94710.0,0.05843831]
[1746467539401,0.21117986,94706.0,94700.0,0.001]
[1746467539597,0.21119101,94701.0,94700.0,0.001]
[1746467540192,0.22775139,94701.0,94700.0,0.001]
[1746467540608,0.22775139,94701.0,94700.0,0.002]
[1746467540807,0.22775139,94701.0,94700.0,0.001]
[1746467541817,0.72775139,94701.0,94700.0,0.001]
[1746467542235,0.72775139,94701.0,94700.0,0.008]
[1746467542236,0.74375139,94701.0,94700.0,0.008]
[1746467542462,0.74375139,94701.0,94700.0,0.01360961]
[1746467542463,1.76201085,94701.0,94700.0,0.01360961]
[1746467542666,1.7765517,94701.0,94700.0,0.01360961]
[1746467542901,1.80615822,94701.0,94700.0,0.008]
[1746467543103,0.5512557,94672.0,94671.0,0.05257323]
[1746467543308,1.22201516,94672.0,94671.0,0.05257323]
[1746467543515,1.22201516,94672.0,94671.0,0.05302713]
[1746467543921,1.2385813,94672.0,94671.0,0.05302713]
[1746467544135,1.2546813,94672.0,94671.0,0.05302713]
[1746467544473,1.2230813,94672.0,94671.0,0.05302713]
[1746467544995,1.7230813,94672.0,94671.0,0.05302713]
[1746467545397,1.7230813,94672.0,94671.0,0.05502713]
[1746467545748,1.7230813,94672.0,94671.0,0.05302713]
[1746467545928,1.7240813,94672.0,94671.0,0.0034539]
[1746467546668,1.70751516,94672.0,94671.0,0.0034539]
[1746467546877,1.49625946,94672.0,94671.0,0.0034539]
[1746467548034,1.49825946,94672.0,94671.0,0.0034539]
[1746467549725,1.51482678,94672.0,94671.0,0.0034539]
[1746467551056,1.17482678,94672.0,94671.0,0.0034539]
[1746467551256,1.17482678,94672.0,94671.0,0.01005098]
[1746467551591,0.67482678,94672.0,94671.0,0.04175098]
[1746467551914,0.01756732,94672.0,94671.0,0.04175098]
[1746467552286,0.01656732,94672.0,94671.0,0.04275098]
[1746467552469,0.01656732,94672.0,94671.0,0.04575098]
[1746467552893,0.01656732,94672.0,94671.0,0.04275098]
[1746467553093,0.01756732,94672.0,94671.0,0.04775098]
[1746467553475,0.01756732,94672.0,94671.0,0.04675098]
[1746467553687,0.01756732,94672.0,94671.0,0.05075098]
[1746467554252,0.22176266,94696.0,94692.0,0.01056055]
[1746467554729,0.23832525,94696.0,94693.0,0.01699673]
[1746467554929,0.23832525,94696.0,94692.0,0.22176967]
[1746467555067,0.23832525,94696.0,94694.0,0.00643497]
[1746467555273,0.23832525,94696.0,94692.0,0.01056055]
[1746467555476,0.23832525,94696.0,94695.0,0.00643364]
[1746467555679,0.23932525,94696.0,94693.0,0.01056044]
[1746467556065,0.22177737,94690.0,94687.0,0.22178306]
[1746467556238,0.01056055,94692.0,94689.0,0.21121777]
[1746467556380,0.2217722,94692.0,94688.0,0.2217809]
[1746467556583,0.2217722,94692.0,94689.0,0.22177703]
[1746467557008,0.2217722,94692.0,94690.0,0.21121546]
[1746467557449,0.2217722,94692.0,94691.0,0.00626088]
[1746467557830,0.22176796,94694.0,94690.0,0.22177623]
[1746467557994,0.21120955,94693.0,94691.0,0.00626349]
[1746467558211,0.00264009,94692.0,94679.0,0.010562]
[1746467558409,0.01056166,94682.0,94680.0,0.00627811]
[1746467558608,0.22179559,94682.0,94680.0,0.00627811]
[1746467558837,0.22179559,94682.0,94678.0,0.22180369]
[1746467559055,0.22179559,94682.0,94680.0,0.21123767]
[1746467559056,0.01656365,94682.0,94680.0,0.21123767]
[1746467559281,0.01656365,94682.0,94681.0,0.00627679]
[1746467559697,0.2112108,94693.0,94686.0,0.01056122]
[1746467560144,0.2112108,94693.0,94687.0,0.0062884]
[1746467560325,0.01056055,94692.0,94686.0,0.21122446]
[1746467560518,0.01056055,94692.0,94689.0,0.01056088]
[1746467560674,0.22177179,94692.0,94689.0,0.221778]
[1746467560878,0.01056055,94692.0,94690.0,0.00628442]
[1746467561080,0.01056055,94692.0,94690.0,0.21749987]
[1746467561280,0.22177174,94692.0,94690.0,0.21749987]